[Event "Early-Titled-Tuesday-Blitz-October-17-2023"]
[Site "Chess.com"]
[Date "2023.10.17"]
[Round "7"]
[White "CuattroPrincesses"]
[Black "pineapplepenn"]
[Result "0-1"]
[WhiteElo "2271"]
[BlackElo "2413"]
[TimeControl "180+1"]
[EndTime "9:16:05 PDT"]
[Termination "pineapplepenn won by resignation"]

1. e4 {[%clk 0:02:50.8]} 1... d6 {[%clk 0:02:59]} 2. d4 {[%clk 0:02:49.7]} 2...
Nf6 {[%clk 0:02:58.2]} 3. Nc3 {[%clk 0:02:50.1]} 3... g6 {[%clk 0:02:55.3]} 4.
f3 {[%clk 0:02:50.1]} 4... Bg7 {[%clk 0:02:55.4]} 5. Be3 {[%clk 0:02:50.6]} 5...
c6 {[%clk 0:02:52.6]} 6. Qd2 {[%clk 0:02:51.1]} 6... b5 {[%clk 0:02:52]} 7. a4
{[%clk 0:02:45.6]} 7... b4 {[%clk 0:02:51.8]} 8. Nce2 {[%clk 0:02:41.3]} 8... a5
{[%clk 0:02:49.4]} 9. Nc1 {[%clk 0:02:32.3]} 9... Nbd7 {[%clk 0:02:48.1]} 10.
Nb3 {[%clk 0:02:30.5]} 10... Nb6 {[%clk 0:02:47.2]} 11. Bd3 {[%clk 0:02:23.7]}
11... Be6 {[%clk 0:02:44.9]} 12. Ne2 {[%clk 0:02:18]} 12... Nc4 {[%clk 0:02:45]}
13. Bxc4 {[%clk 0:02:17.4]} 13... Bxc4 {[%clk 0:02:45.7]} 14. O-O {[%clk
0:02:12.2]} 14... O-O {[%clk 0:02:43.9]} 15. Rfd1 {[%clk 0:02:11.8]} 15... Qc7
{[%clk 0:02:38.4]} 16. Bh6 {[%clk 0:02:09.1]} 16... Bxh6 {[%clk 0:02:33.9]} 17.
Qxh6 {[%clk 0:02:10]} 17... Bxe2 {[%clk 0:02:33.9]} 0-1

[Event "Early-Titled-Tuesday-Blitz-October-17-2023"]
[Site "Chess.com"]
[Date "2023.10.17"]
[Round "7"]
[White "lolo9292"]
[Black "ozates"]
[Result "1-0"]
[WhiteElo "2219"]
[BlackElo "2716"]
[TimeControl "180+1"]
[EndTime "9:16:20 PDT"]
[Termination "lolo9292 won by resignation"]

1. Nf3 {[%clk 0:02:54.4]} 1... c5 {[%clk 0:02:58.4]} 2. e4 {[%clk 0:02:49.5]}
2... Nc6 {[%clk 0:02:54.5]} 3. Nc3 {[%clk 0:02:46]} 3... e5 {[%clk 0:02:50.7]}
4. Bc4 {[%clk 0:02:43.8]} 4... Be7 {[%clk 0:02:50.8]} 5. d3 {[%clk 0:02:43.5]}
5... d6 {[%clk 0:02:51.4]} 6. a4 {[%clk 0:02:43.2]} 6... Bg4 {[%clk 0:02:50.4]}
7. h3 {[%clk 0:02:41.9]} 7... Bh5 {[%clk 0:02:47.7]} 8. Nd5 {[%clk 0:02:39.7]}
8... Nf6 {[%clk 0:02:47.2]} 9. c3 {[%clk 0:02:39.1]} 9... Nxd5 {[%clk
0:02:46.8]} 10. Bxd5 {[%clk 0:02:40]} 10... O-O {[%clk 0:02:46.7]} 11. Be3
{[%clk 0:02:32.3]} 11... Kh8 {[%clk 0:02:45.9]} 12. g4 {[%clk 0:02:31.2]} 12...
Bg6 {[%clk 0:02:46]} 13. Qe2 {[%clk 0:02:26.7]} 13... Rb8 {[%clk 0:02:38.1]} 14.
h4 {[%clk 0:02:25.5]} 14... f6 {[%clk 0:02:37.9]} 15. h5 {[%clk 0:02:23.9]}
15... Bf7 {[%clk 0:02:38.2]} 16. Nh4 {[%clk 0:02:22.6]} 16... Bxd5 {[%clk
0:02:32.9]} 17. exd5 {[%clk 0:02:22.1]} 17... Na5 {[%clk 0:02:32.8]} 18. Qf3
{[%clk 0:02:11.8]} 18... Nc4 {[%clk 0:02:14]} 19. dxc4 {[%clk 0:02:08.5]} 1-0

[Event "Early-Titled-Tuesday-Blitz-October-17-2023"]
[Site "Chess.com"]
[Date "2023.10.17"]
[Round "7"]
[White "ChessQueen"]
[Black "emeli_chess"]
[Result "1-0"]
[WhiteElo "2701"]
[BlackElo "2405"]
[TimeControl "180+1"]
[EndTime "9:16:41 PDT"]
[Termination "ChessQueen won by resignation"]

1. e4 {[%clk 0:03:00.9]} 1... e5 {[%clk 0:02:59.4]} 2. Nf3 {[%clk 0:03:00.3]}
2... Nc6 {[%clk 0:02:59.7]} 3. Bb5 {[%clk 0:03:00.3]} 3... a6 {[%clk 0:02:58.6]}
4. Ba4 {[%clk 0:03:00.2]} 4... Nf6 {[%clk 0:02:58.6]} 5. d4 {[%clk 0:03:00.5]}
5... exd4 {[%clk 0:02:53.7]} 6. O-O {[%clk 0:02:59.5]} 6... Be7 {[%clk
0:02:46.1]} 7. e5 {[%clk 0:02:59.4]} 7... Ne4 {[%clk 0:02:37.3]} 8. Nxd4 {[%clk
0:02:58.7]} 8... Nc5 {[%clk 0:02:34.3]} 9. Nf5 {[%clk 0:02:58.6]} 9... O-O
{[%clk 0:02:12.4]} 10. Qg4 {[%clk 0:02:58.4]} 10... g6 {[%clk 0:02:12.4]} 11.
Bxc6 {[%clk 0:02:57.1]} 11... dxc6 {[%clk 0:02:10.2]} 12. Nxe7+ {[%clk
0:02:57.2]} 12... Qxe7 {[%clk 0:02:09.5]} 13. Qg3 {[%clk 0:02:57.6]} 13... f6
{[%clk 0:01:59.6]} 14. exf6 {[%clk 0:02:49.9]} 14... Qxf6 {[%clk 0:01:56.3]} 15.
Nc3 {[%clk 0:02:48.4]} 15... Qd6 {[%clk 0:01:48.5]} 16. Qh4 {[%clk 0:02:43.2]}
16... Bf5 {[%clk 0:01:44.7]} 17. Bh6 {[%clk 0:02:42.2]} 17... Rfd8 {[%clk
0:01:30.9]} 18. Rad1 {[%clk 0:02:38.2]} 18... Qe6 {[%clk 0:01:27.9]} 19. Rxd8+
{[%clk 0:02:37.1]} 1-0

[Event "Early-Titled-Tuesday-Blitz-October-17-2023"]
[Site "Chess.com"]
[Date "2023.10.17"]
[Round "7"]
[White "Semetey"]
[Black "LeRoidesChampions"]
[Result "0-1"]
[WhiteElo "2546"]
[BlackElo "2698"]
[TimeControl "180+1"]
[EndTime "9:16:53 PDT"]
[Termination "LeRoidesChampions won by resignation"]

1. a3 {[%clk 0:02:24.1]} 1... e5 {[%clk 0:02:55.9]} 2. c4 {[%clk 0:02:20.3]}
2... Nf6 {[%clk 0:02:54.8]} 3. Nc3 {[%clk 0:02:19.7]} 3... c6 {[%clk 0:02:54]}
4. g3 {[%clk 0:02:16.3]} 4... Bc5 {[%clk 0:02:46.1]} 5. Bg2 {[%clk 0:02:15.6]}
5... O-O {[%clk 0:02:45.7]} 6. e3 {[%clk 0:02:15.6]} 6... d5 {[%clk 0:02:45.5]}
7. d4 {[%clk 0:02:14.7]} 7... exd4 {[%clk 0:02:41.6]} 8. exd4 {[%clk 0:02:15.6]}
8... Bb6 {[%clk 0:02:35.3]} 9. cxd5 {[%clk 0:02:15.6]} 9... cxd5 {[%clk
0:02:34.8]} 10. Nge2 {[%clk 0:02:15]} 10... Nc6 {[%clk 0:02:35.4]} 11. O-O
{[%clk 0:02:14]} 11... Bf5 {[%clk 0:02:34.4]} 12. Na4 {[%clk 0:02:09.1]} 12...
Rc8 {[%clk 0:02:30.9]} 13. Be3 {[%clk 0:02:01.4]} 13... Na5 {[%clk 0:02:27.9]}
14. Nec3 {[%clk 0:01:57.7]} 14... Nc4 {[%clk 0:02:27.2]} 15. Nxb6 {[%clk
0:01:57.7]} 15... Qxb6 {[%clk 0:02:18.9]} 16. Nxd5 {[%clk 0:01:52.6]} 16... Nxd5
{[%clk 0:02:18.8]} 17. Bxd5 {[%clk 0:01:53.5]} 17... Qxb2 {[%clk 0:02:19.3]} 18.
Bxb7 {[%clk 0:01:36]} 18... Qxb7 {[%clk 0:02:17.9]} 0-1

[Event "Early-Titled-Tuesday-Blitz-October-17-2023"]
[Site "Chess.com"]
[Date "2023.10.17"]
[Round "7"]
[White "arminmusovic"]
[Black "Kildepiotr"]
[Result "0-1"]
[WhiteElo "2488"]
[BlackElo "2636"]
[TimeControl "180+1"]
[EndTime "9:17:49 PDT"]
[Termination "Kildepiotr won by resignation"]

1. a3 {[%clk 0:02:55.8]} 1... g6 {[%clk 0:02:59.7]} 2. Nc3 {[%clk 0:02:55.3]}
2... Bg7 {[%clk 0:03:00.2]} 3. e4 {[%clk 0:02:56.1]} 3... c6 {[%clk 0:03:00.5]}
4. Bc4 {[%clk 0:02:56.8]} 4... e6 {[%clk 0:02:58]} 5. Ba2 {[%clk 0:02:57.2]}
5... d5 {[%clk 0:02:58.2]} 6. d3 {[%clk 0:02:57.8]} 6... Nf6 {[%clk 0:02:57.2]}
7. Bd2 {[%clk 0:02:54.8]} 7... O-O {[%clk 0:02:55.3]} 8. Nge2 {[%clk 0:02:54.5]}
8... dxe4 {[%clk 0:02:54.1]} 9. dxe4 {[%clk 0:02:54.1]} 9... e5 {[%clk
0:02:54.2]} 10. O-O {[%clk 0:02:53.7]} 10... Qc7 {[%clk 0:02:51]} 11. Qc1 {[%clk
0:02:53]} 11... Nbd7 {[%clk 0:02:48.3]} 12. Bh6 {[%clk 0:02:51.4]} 12... Nc5
{[%clk 0:02:48.3]} 13. Bxg7 {[%clk 0:02:51.8]} 13... Kxg7 {[%clk 0:02:49.2]} 14.
f3 {[%clk 0:02:52.4]} 14... Be6 {[%clk 0:02:48.5]} 15. Qe3 {[%clk 0:02:50.2]}
15... Bxa2 {[%clk 0:02:47.9]} 16. Rxa2 {[%clk 0:02:50]} 16... Ne6 {[%clk
0:02:48.1]} 17. Raa1 {[%clk 0:02:48.8]} 17... Rfd8 {[%clk 0:02:47.9]} 18. Rae1
{[%clk 0:02:48.3]} 18... Qb6 {[%clk 0:02:47.6]} 19. Qxb6 {[%clk 0:02:47.7]}
19... axb6 {[%clk 0:02:48.5]} 20. Kf2 {[%clk 0:02:46.9]} 20... Nd7 {[%clk
0:02:44.3]} 21. Rd1 {[%clk 0:02:45.8]} 21... b5 {[%clk 0:02:44.5]} 22. Rd2
{[%clk 0:02:44.7]} 22... Nb6 {[%clk 0:02:44.6]} 23. Rxd8 {[%clk 0:02:43.3]}
23... Rxd8 {[%clk 0:02:44]} 24. Rd1 {[%clk 0:02:39.1]} 24... Ra8 {[%clk
0:02:44.1]} 25. Rh1 {[%clk 0:02:22.8]} 25... Nc4 {[%clk 0:02:42.1]} 26. Nd1
{[%clk 0:02:22.9]} 26... Kf6 {[%clk 0:02:40.8]} 27. g3 {[%clk 0:02:19.6]} 27...
Rd8 {[%clk 0:02:38.3]} 28. b3 {[%clk 0:02:04]} 28... Nxa3 {[%clk 0:02:37.3]} 29.
Ne3 {[%clk 0:02:04.8]} 29... Ke7 {[%clk 0:02:28.7]} 30. Rc1 {[%clk 0:01:59.2]}
30... b4 {[%clk 0:02:24.9]} 31. Ke1 {[%clk 0:01:58.8]} 31... Nd4 {[%clk
0:02:18.7]} 32. Nxd4 {[%clk 0:01:58.3]} 32... exd4 {[%clk 0:02:17.3]} 33. Nd1
{[%clk 0:01:58.7]} 33... d3 {[%clk 0:02:03.4]} 34. cxd3 {[%clk 0:01:59.6]} 34...
Rxd3 {[%clk 0:02:02.7]} 35. Ke2 {[%clk 0:01:55.2]} 35... Rxb3 {[%clk 0:02:02.4]}
36. Rc5 {[%clk 0:01:55.7]} 36... Nb5 {[%clk 0:02:00.4]} 37. Re5+ {[%clk
0:01:55.8]} 37... Kd6 {[%clk 0:01:59.8]} 38. f4 {[%clk 0:01:56.7]} 38... Nc3+
{[%clk 0:01:58.7]} 39. Nxc3 {[%clk 0:01:56]} 39... Rxc3 {[%clk 0:01:59.3]} 40.
Re8 {[%clk 0:01:55.9]} 40... b3 {[%clk 0:01:58.6]} 41. Kd2 {[%clk 0:01:53.9]}
41... Rc2+ {[%clk 0:01:58]} 42. Kd3 {[%clk 0:01:54.6]} 42... Rxh2 {[%clk
0:01:58.2]} 43. e5+ {[%clk 0:01:55]} 43... Kc5 {[%clk 0:01:56]} 44. Rc8 {[%clk
0:01:54.9]} 44... b2 {[%clk 0:01:55]} 45. Rxc6+ {[%clk 0:01:55.8]} 0-1

[Event "Early-Titled-Tuesday-Blitz-October-17-2023"]
[Site "Chess.com"]
[Date "2023.10.17"]
[Round "7"]
[White "Zurability"]
[Black "Keeper0416"]
[Result "1-0"]
[WhiteElo "2750"]
[BlackElo "2598"]
[TimeControl "180+1"]
[EndTime "9:17:59 PDT"]
[Termination "Zurability won by resignation"]

1. Nf3 {[%clk 0:03:00.9]} 1... b5 {[%clk 0:02:57.8]} 2. e3 {[%clk 0:02:58.6]}
2... a6 {[%clk 0:02:56.4]} 3. b3 {[%clk 0:02:55.8]} 3... Nf6 {[%clk 0:02:55.7]}
4. c4 {[%clk 0:02:56.4]} 4... c6 {[%clk 0:02:39.5]} 5. d4 {[%clk 0:02:55.3]}
5... d5 {[%clk 0:02:38.7]} 6. Bd3 {[%clk 0:02:50.7]} 6... g6 {[%clk 0:02:38.1]}
7. O-O {[%clk 0:02:49.3]} 7... Bg7 {[%clk 0:02:38.2]} 8. Ba3 {[%clk 0:02:46.5]}
8... O-O {[%clk 0:02:37.2]} 9. Nbd2 {[%clk 0:02:46.6]} 9... Bb7 {[%clk
0:02:23.1]} 10. Rc1 {[%clk 0:02:45.5]} 10... Re8 {[%clk 0:02:18.3]} 11. cxd5
{[%clk 0:02:42.5]} 11... cxd5 {[%clk 0:02:17.9]} 12. Ne5 {[%clk 0:02:42.6]}
12... Nfd7 {[%clk 0:02:18]} 13. f4 {[%clk 0:02:40.1]} 13... f6 {[%clk
0:02:15.3]} 14. Nxg6 {[%clk 0:02:24.7]} 14... hxg6 {[%clk 0:02:10.8]} 15. Bxg6
{[%clk 0:02:25.6]} 15... Nc6 {[%clk 0:01:24.3]} 16. Qh5 {[%clk 0:02:21.9]} 16...
b4 {[%clk 0:01:21.9]} 17. Bf7+ {[%clk 0:02:04.2]} 17... Kf8 {[%clk 0:01:21.8]}
18. Be6 {[%clk 0:02:04.1]} 1-0

[Event "Early-Titled-Tuesday-Blitz-October-17-2023"]
[Site "Chess.com"]
[Date "2023.10.17"]
[Round "7"]
[White "Khromkin"]
[Black "HanSchut"]
[Result "1-0"]
[WhiteElo "2523"]
[BlackElo "2323"]
[TimeControl "180+1"]
[EndTime "9:18:16 PDT"]
[Termination "Khromkin won by resignation"]

1. d4 {[%clk 0:03:00.9]} 1... Nf6 {[%clk 0:02:59.4]} 2. c4 {[%clk 0:03:01]} 2...
g6 {[%clk 0:02:59.9]} 3. Nf3 {[%clk 0:03:01.2]} 3... Bg7 {[%clk 0:02:59.7]} 4.
Nc3 {[%clk 0:03:01.7]} 4... d5 {[%clk 0:03:00.2]} 5. cxd5 {[%clk 0:03:00.6]}
5... Nxd5 {[%clk 0:03:01.1]} 6. g3 {[%clk 0:03:00.4]} 6... c5 {[%clk 0:03:00.5]}
7. Bg2 {[%clk 0:03:00.8]} 7... O-O {[%clk 0:02:57.2]} 8. O-O {[%clk 0:03:00]}
8... Nc6 {[%clk 0:02:51.3]} 9. Nxd5 {[%clk 0:02:58.6]} 9... Qxd5 {[%clk
0:02:50.9]} 10. Be3 {[%clk 0:02:59.5]} 10... cxd4 {[%clk 0:02:36.5]} 11. Nxd4
{[%clk 0:03:00.4]} 11... Qd7 {[%clk 0:02:36.1]} 12. Nxc6 {[%clk 0:03:00.1]}
12... bxc6 {[%clk 0:02:37]} 13. Qa4 {[%clk 0:02:56.3]} 13... Bb7 {[%clk
0:02:11.5]} 14. Rad1 {[%clk 0:02:46]} 14... Qe6 {[%clk 0:01:59.5]} 15. b3 {[%clk
0:02:46]} 15... a5 {[%clk 0:01:39.1]} 16. Rd2 {[%clk 0:02:33.1]} 16... Bc3
{[%clk 0:01:35.6]} 17. Rc2 {[%clk 0:02:30.4]} 17... Bb4 {[%clk 0:01:34.8]} 18.
Bxc6 {[%clk 0:02:24.5]} 18... Bxc6 {[%clk 0:01:34.5]} 19. Qxc6 {[%clk
0:02:21.3]} 19... Qxc6 {[%clk 0:01:23.5]} 20. Rxc6 {[%clk 0:02:20.5]} 20... a4
{[%clk 0:01:24.4]} 21. Rc4 {[%clk 0:02:16.1]} 21... Rfb8 {[%clk 0:01:21.7]} 22.
bxa4 {[%clk 0:02:12.3]} 22... Rxa4 {[%clk 0:01:17]} 23. Rb1 {[%clk 0:02:11.3]}
23... Kg7 {[%clk 0:01:09.2]} 24. Rb2 {[%clk 0:01:44]} 24... Bd6 {[%clk
0:01:06.5]} 25. Rxa4 {[%clk 0:01:40.2]} 25... Rxb2 {[%clk 0:01:06.2]} 26. Bd4+
{[%clk 0:01:40.8]} 1-0

[Event "Early-Titled-Tuesday-Blitz-October-17-2023"]
[Site "Chess.com"]
[Date "2023.10.17"]
[Round "7"]
[White "cristiano78"]
[Black "Balla_Tamas"]
[Result "0-1"]
[WhiteElo "2256"]
[BlackElo "2396"]
[TimeControl "180+1"]
[EndTime "9:18:42 PDT"]
[Termination "Balla_Tamas won by resignation"]

1. d4 {[%clk 0:02:33.9]} 1... d5 {[%clk 0:02:52.9]} 2. c4 {[%clk 0:02:33.4]}
2... e6 {[%clk 0:02:53.1]} 3. Nf3 {[%clk 0:02:32.8]} 3... c5 {[%clk 0:02:53.5]}
4. cxd5 {[%clk 0:02:30.8]} 4... exd5 {[%clk 0:02:54.4]} 5. Nc3 {[%clk
0:02:30.9]} 5... Nc6 {[%clk 0:02:54.4]} 6. g3 {[%clk 0:02:29]} 6... Nf6 {[%clk
0:02:54.4]} 7. Bg5 {[%clk 0:02:28]} 7... Be7 {[%clk 0:02:53.1]} 8. Bg2 {[%clk
0:02:27.8]} 8... cxd4 {[%clk 0:02:51.6]} 9. Nxd4 {[%clk 0:02:27.6]} 9... Be6
{[%clk 0:02:52.2]} 10. O-O {[%clk 0:02:27.1]} 10... O-O {[%clk 0:02:50.8]} 11.
Rc1 {[%clk 0:02:27.2]} 11... h6 {[%clk 0:02:50.4]} 12. Bxf6 {[%clk 0:02:26.2]}
12... Bxf6 {[%clk 0:02:50.2]} 13. Nxc6 {[%clk 0:02:25]} 13... bxc6 {[%clk
0:02:49.6]} 14. b3 {[%clk 0:02:25.4]} 14... Rc8 {[%clk 0:02:46.1]} 15. Na4
{[%clk 0:02:25.4]} 15... Qa5 {[%clk 0:02:40.5]} 16. Rc5 {[%clk 0:02:20.4]} 16...
Qa6 {[%clk 0:02:38.5]} 17. Qc2 {[%clk 0:02:14.9]} 17... Bd4 {[%clk 0:02:34.6]}
18. e3 {[%clk 0:02:08.3]} 18... Bxc5 {[%clk 0:02:33.1]} 19. Nxc5 {[%clk
0:02:09.2]} 19... Qa3 {[%clk 0:02:31.1]} 20. Rd1 {[%clk 0:02:01.4]} 20... Rb8
{[%clk 0:02:10.3]} 21. Rd4 {[%clk 0:01:55.6]} 21... Rb4 {[%clk 0:02:09.7]} 22.
Rxb4 {[%clk 0:01:48.6]} 22... Qxb4 {[%clk 0:02:10.6]} 23. Qc1 {[%clk 0:01:38.5]}
23... d4 {[%clk 0:02:03]} 24. exd4 {[%clk 0:01:30.4]} 24... Qxd4 {[%clk
0:02:03.9]} 25. a3 {[%clk 0:01:18.7]} 25... Rd8 {[%clk 0:02:03]} 26. Bxc6 {[%clk
0:01:10.6]} 26... Rc8 {[%clk 0:01:49.2]} 27. Nxe6 {[%clk 0:01:07.8]} 27... fxe6
{[%clk 0:01:50.1]} 28. b4 {[%clk 0:01:07.2]} 28... a6 {[%clk 0:01:49.5]} 0-1

[Event "Early-Titled-Tuesday-Blitz-October-17-2023"]
[Site "Chess.com"]
[Date "2023.10.17"]
[Round "7"]
[White "supereagles1201"]
[Black "midedu"]
[Result "1-0"]
[WhiteElo "2358"]
[BlackElo "2009"]
[TimeControl "180+1"]
[EndTime "9:18:45 PDT"]
[Termination "supereagles1201 won by resignation"]

1. d4 {[%clk 0:03:00.9]} 1... Nf6 {[%clk 0:02:59.4]} 2. Bg5 {[%clk 0:03:00.5]}
2... e6 {[%clk 0:02:59.1]} 3. e4 {[%clk 0:02:59.6]} 3... d6 {[%clk 0:02:59.3]}
4. Bd3 {[%clk 0:02:57.6]} 4... Be7 {[%clk 0:02:58.5]} 5. Nd2 {[%clk 0:02:55.1]}
5... a6 {[%clk 0:02:57.9]} 6. Ngf3 {[%clk 0:02:54.7]} 6... Nbd7 {[%clk
0:02:57.9]} 7. O-O {[%clk 0:02:54.1]} 7... c5 {[%clk 0:02:57.4]} 8. c3 {[%clk
0:02:53.4]} 8... b5 {[%clk 0:02:57.3]} 9. e5 {[%clk 0:02:51.8]} 9... Nd5 {[%clk
0:02:54.3]} 10. Bxe7 {[%clk 0:02:50.8]} 10... Qxe7 {[%clk 0:02:54]} 11. Ne4
{[%clk 0:02:51.4]} 11... dxe5 {[%clk 0:02:52.4]} 12. dxe5 {[%clk 0:02:51]} 12...
O-O {[%clk 0:02:47.9]} 13. Re1 {[%clk 0:02:34.7]} 13... Nf4 {[%clk 0:02:47.1]}
14. Bc2 {[%clk 0:02:30.5]} 14... Bb7 {[%clk 0:02:46.7]} 15. g3 {[%clk 0:02:21]}
15... Ng6 {[%clk 0:02:45.8]} 16. Ned2 {[%clk 0:01:52]} 16... Rad8 {[%clk
0:02:38.7]} 17. Qe2 {[%clk 0:01:38.9]} 17... Nb6 {[%clk 0:02:28]} 18. h4 {[%clk
0:01:35.2]} 18... Rfe8 {[%clk 0:02:24]} 19. h5 {[%clk 0:01:31.3]} 19... Nf8
{[%clk 0:02:23.4]} 20. h6 {[%clk 0:01:26.9]} 20... g6 {[%clk 0:02:15.8]} 21. Be4
{[%clk 0:01:26]} 21... f5 {[%clk 0:02:08.6]} 22. exf6 {[%clk 0:01:24.5]} 22...
Qc7 {[%clk 0:02:03.7]} 23. Ng5 {[%clk 0:01:17.1]} 23... Rd7 {[%clk 0:01:39.6]}
24. Bxb7 {[%clk 0:01:08.2]} 24... Qxb7 {[%clk 0:01:39]} 25. Nde4 {[%clk
0:01:06.3]} 25... Qc7 {[%clk 0:01:28.4]} 26. f7+ {[%clk 0:01:01.9]} 26... Rxf7
{[%clk 0:01:27.3]} 27. Nxf7 {[%clk 0:01:02.3]} 27... Kxf7 {[%clk 0:01:26.1]} 28.
Qf3+ {[%clk 0:00:56.5]} 1-0

[Event "Early-Titled-Tuesday-Blitz-October-17-2023"]
[Site "Chess.com"]
[Date "2023.10.17"]
[Round "7"]
[White "Bauman_Guy"]
[Black "Karttunen"]
[Result "1-0"]
[WhiteElo "2847"]
[BlackElo "2574"]
[TimeControl "180+1"]
[EndTime "9:18:50 PDT"]
[Termination "Bauman_Guy won by resignation"]

1. e4 {[%clk 0:03:00.9]} 1... e5 {[%clk 0:02:59.4]} 2. Nf3 {[%clk 0:03:01.3]}
2... Nc6 {[%clk 0:02:59.5]} 3. Bb5 {[%clk 0:03:02]} 3... Nf6 {[%clk 0:02:58.8]}
4. O-O {[%clk 0:03:01.9]} 4... d6 {[%clk 0:02:56.3]} 5. d4 {[%clk 0:03:01.4]}
5... exd4 {[%clk 0:02:51.3]} 6. Nxd4 {[%clk 0:03:02.3]} 6... Bd7 {[%clk
0:02:50.9]} 7. Nc3 {[%clk 0:03:02.6]} 7... Nxd4 {[%clk 0:02:47]} 8. Qxd4 {[%clk
0:03:03.5]} 8... Be7 {[%clk 0:02:45.4]} 9. Bg5 {[%clk 0:03:01.1]} 9... Bxb5
{[%clk 0:02:41.4]} 10. Nxb5 {[%clk 0:03:00.8]} 10... O-O {[%clk 0:02:27.6]} 11.
c4 {[%clk 0:03:00.5]} 11... a6 {[%clk 0:02:24.6]} 12. Nc3 {[%clk 0:03:00.4]}
12... Re8 {[%clk 0:02:16.7]} 13. Rfe1 {[%clk 0:02:55]} 13... Qd7 {[%clk
0:02:03.5]} 14. f3 {[%clk 0:02:53]} 14... Rad8 {[%clk 0:01:52.8]} 15. Rad1
{[%clk 0:02:51.8]} 15... Qc8 {[%clk 0:01:51.7]} 16. Be3 {[%clk 0:02:51]} 16...
Bf8 {[%clk 0:01:40.1]} 17. Qd2 {[%clk 0:02:50.8]} 17... h6 {[%clk 0:01:37.7]}
18. Bd4 {[%clk 0:02:49.5]} 18... Nd7 {[%clk 0:01:33.4]} 19. Nd5 {[%clk
0:02:48.9]} 19... b6 {[%clk 0:01:25.7]} 20. b3 {[%clk 0:02:45.7]} 20... Qb7
{[%clk 0:01:26]} 21. Qf2 {[%clk 0:02:45.8]} 21... Rb8 {[%clk 0:01:25.2]} 22. Rc1
{[%clk 0:02:43.5]} 22... c6 {[%clk 0:01:24.1]} 23. Ne3 {[%clk 0:02:43.1]} 23...
b5 {[%clk 0:01:23.7]} 24. Qg3 {[%clk 0:02:41.9]} 24... bxc4 {[%clk 0:01:02.4]}
25. Nxc4 {[%clk 0:02:41.8]} 25... Qc7 {[%clk 0:00:52.8]} 26. Red1 {[%clk
0:02:38]} 26... Ne5 {[%clk 0:00:50.3]} 27. Bxe5 {[%clk 0:02:33.1]} 27... dxe5
{[%clk 0:00:50.4]} 28. h4 {[%clk 0:02:22.1]} 28... Rbd8 {[%clk 0:00:48.4]} 29.
Kh2 {[%clk 0:02:21.9]} 29... Rxd1 {[%clk 0:00:47.1]} 30. Rxd1 {[%clk 0:02:22.8]}
30... f6 {[%clk 0:00:41.5]} 31. Qg4 {[%clk 0:02:22.1]} 31... Rd8 {[%clk
0:00:37.5]} 32. Qe6+ {[%clk 0:02:22]} 32... Kh8 {[%clk 0:00:36.5]} 33. Rxd8
{[%clk 0:02:22.2]} 33... Qxd8 {[%clk 0:00:37]} 34. Qxc6 {[%clk 0:02:22.8]} 34...
f5 {[%clk 0:00:37.6]} 35. Kh3 {[%clk 0:02:18.3]} 35... Qe7 {[%clk 0:00:26.2]}
36. exf5 {[%clk 0:02:17.3]} 1-0

[Event "Early-Titled-Tuesday-Blitz-October-17-2023"]
[Site "Chess.com"]
[Date "2023.10.17"]
[Round "7"]
[White "ExcitingTrap"]
[Black "rikchessmx"]
[Result "1-0"]
[WhiteElo "2411"]
[BlackElo "2260"]
[TimeControl "180+1"]
[EndTime "9:18:57 PDT"]
[Termination "ExcitingTrap won by checkmate"]

1. e4 {[%clk 0:02:57.9]} 1... c5 {[%clk 0:02:24]} 2. Nf3 {[%clk 0:02:56.9]} 2...
e6 {[%clk 0:02:24.1]} 3. d4 {[%clk 0:02:57.3]} 3... cxd4 {[%clk 0:02:25]} 4.
Nxd4 {[%clk 0:02:57.9]} 4... a6 {[%clk 0:02:25.7]} 5. Bd3 {[%clk 0:02:57.6]}
5... Qc7 {[%clk 0:02:26]} 6. O-O {[%clk 0:02:56.8]} 6... Nf6 {[%clk 0:02:25.8]}
7. c4 {[%clk 0:02:55.4]} 7... h5 {[%clk 0:02:24.3]} 8. Ne2 {[%clk 0:02:49.3]}
8... Bc5 {[%clk 0:02:21.2]} 9. Bf4 {[%clk 0:02:47]} 9... d6 {[%clk 0:02:21]} 10.
Nbc3 {[%clk 0:02:45.5]} 10... Nc6 {[%clk 0:02:20.4]} 11. a3 {[%clk 0:02:44.9]}
11... Ne5 {[%clk 0:02:10]} 12. b4 {[%clk 0:02:42.4]} 12... Ba7 {[%clk
0:02:09.1]} 13. Rc1 {[%clk 0:02:40.7]} 13... Ng6 {[%clk 0:02:08.1]} 14. Bg5
{[%clk 0:02:35.1]} 14... Ng4 {[%clk 0:02:07.4]} 15. Bb1 {[%clk 0:02:18.1]} 15...
d5 {[%clk 0:02:01.8]} 16. Ng3 {[%clk 0:02:08.4]} 16... dxc4 {[%clk 0:01:49.2]}
17. b5 {[%clk 0:01:46.4]} 17... Nxh2 {[%clk 0:01:37.3]} 18. Kxh2 {[%clk
0:00:52.8]} 18... h4 {[%clk 0:01:35.2]} 19. e5 {[%clk 0:00:51.2]} 19... hxg3+
{[%clk 0:01:32]} 20. Kxg3 {[%clk 0:00:51.9]} 20... Qxe5+ {[%clk 0:01:28.3]} 21.
f4 {[%clk 0:00:52.6]} 21... Qc5 {[%clk 0:01:02]} 22. Qd8# {[%clk 0:00:51.4]} 1-0

[Event "Early-Titled-Tuesday-Blitz-October-17-2023"]
[Site "Chess.com"]
[Date "2023.10.17"]
[Round "7"]
[White "TregubovP"]
[Black "GMSAGOR"]
[Result "1-0"]
[WhiteElo "2614"]
[BlackElo "2476"]
[TimeControl "180+1"]
[EndTime "9:19:03 PDT"]
[Termination "TregubovP won by resignation"]

1. e4 {[%clk 0:03:00.9]} 1... e5 {[%clk 0:02:59.8]} 2. Nf3 {[%clk 0:03:00.7]}
2... Nf6 {[%clk 0:03:00.7]} 3. Nxe5 {[%clk 0:02:56]} 3... d6 {[%clk 0:02:59.1]}
4. Nf3 {[%clk 0:02:56.6]} 4... Nxe4 {[%clk 0:02:59.4]} 5. c4 {[%clk 0:02:56.8]}
5... Be7 {[%clk 0:02:54.1]} 6. d3 {[%clk 0:02:54.1]} 6... Nf6 {[%clk 0:02:53.8]}
7. d4 {[%clk 0:02:54.7]} 7... O-O {[%clk 0:02:53.9]} 8. Bd3 {[%clk 0:02:44.7]}
8... d5 {[%clk 0:02:53.8]} 9. O-O {[%clk 0:02:43.6]} 9... Bg4 {[%clk 0:02:53]}
10. h3 {[%clk 0:02:42.9]} 10... Bxf3 {[%clk 0:02:46.2]} 11. Qxf3 {[%clk
0:02:42.3]} 11... Nc6 {[%clk 0:02:43.7]} 12. Be3 {[%clk 0:02:28.3]} 12... dxc4
{[%clk 0:02:39.9]} 13. Bxc4 {[%clk 0:02:28.5]} 13... Nxd4 {[%clk 0:02:40.6]} 14.
Qd1 {[%clk 0:01:43.2]} 14... c5 {[%clk 0:02:35.4]} 15. Nc3 {[%clk 0:01:42.6]}
15... a6 {[%clk 0:02:34.6]} 16. a4 {[%clk 0:01:42.2]} 16... Rb8 {[%clk
0:02:29.4]} 17. a5 {[%clk 0:01:41.3]} 17... Qc7 {[%clk 0:02:25.1]} 18. Qa4
{[%clk 0:01:31.9]} 18... Rfd8 {[%clk 0:02:08.9]} 19. Rac1 {[%clk 0:01:23.3]}
19... h6 {[%clk 0:02:03]} 20. Rfe1 {[%clk 0:01:22.8]} 20... Bf8 {[%clk
0:02:02.8]} 21. Ba2 {[%clk 0:01:10]} 21... Rd7 {[%clk 0:01:58]} 22. b4 {[%clk
0:01:05.9]} 22... cxb4 {[%clk 0:01:17.1]} 23. Nd5 {[%clk 0:01:05]} 23... Nxd5
{[%clk 0:01:09.3]} 24. Rxc7 {[%clk 0:01:03.9]} 24... Nxc7 {[%clk 0:01:10.2]} 25.
Qxd7 {[%clk 0:01:01.3]} 25... Nce6 {[%clk 0:01:05.8]} 26. Bxd4 {[%clk
0:01:00.1]} 26... Rd8 {[%clk 0:01:04.6]} 27. Bxe6 {[%clk 0:01:00.5]} 1-0